fUST/lending_fUST_20241008
["ID","MTS","AMOUNT","RATE_DAILY","PERIOD"]
[340021429,1728334271131,-500.0,0.00038904,120]
[340021430,1728334271142,-683.38,0.00038904,120]
[340021431,1728334271152,-524.14121434,0.00038904,120]
[340021432,1728334271164,-500.0,0.00038904,120]
[340021433,1728334271174,-500.0,0.00038904,120]
[340021434,1728334271185,-501.33005136,0.00038904,120]
[340021435,1728334271195,-521.24181256,0.00038904,120]
[340021436,1728334271205,-1235.61,0.00038904,120]
[340021437,1728334271215,-500.0,0.00038904,120]
[340021438,1728334271225,-1137.42,0.00038904,120]
[340021439,1728334271235,-500.0,0.00038904,120]
[340021440,1728334271246,-500.0,0.00038904,120]
[340021441,1728334271259,-500.0,0.00038904,120]
[340021442,1728334271269,-502.19336016,0.00038904,120]
[340021443,1728334271278,-500.0,0.00038904,120]
[340021444,1728334271287,-500.0,0.00038904,120]
[340021445,1728334271296,-500.0,0.00038904,120]
[340021446,1728334271305,-500.0,0.00038904,120]
[340021447,1728334271314,-500.0,0.00038904,120]
[340021448,1728334271323,-399.47029782,0.00038904,120]
[340021449,1728334271332,-500.0,0.00038904,120]
[340021450,1728334271341,-500.0,0.00038904,120]
[340021451,1728334271351,-500.0,0.00038904,120]
[340021452,1728334271360,-500.0,0.00038904,120]
[340021453,1728334271369,-500.0,0.00038904,120]
[340021454,1728334271378,-500.0,0.00038904,120]
[340021455,1728334271387,-500.0,0.00038904,120]
[340021456,1728334271396,-500.0,0.00038904,120]
[340021457,1728334271405,-500.0,0.00038904,120]
[340021458,1728334271414,-500.0,0.00038904,120]
[340021459,1728334271423,-500.0,0.00038904,120]
[340021460,1728334271432,-500.0,0.00038904,120]
[340021461,1728334271442,-575.41,0.00038904,120]
[340021462,1728334271452,-500.0,0.00038904,120]
[340021463,1728334271461,-500.0,0.00038904,120]
[340021464,1728334271470,-500.0,0.00038904,120]
[340021465,1728334271480,-500.0,0.00038904,120]
[340021466,1728334271489,-500.0,0.00038904,120]
[340021467,1728334271498,-500.0,0.00038904,120]
[340021468,1728334271507,-500.0,0.00038904,120]
[340021469,1728334271516,-500.0,0.00038904,120]
[340021470,1728334271525,-576.02229738,0.00038904,120]
[340021471,1728334271534,-500.0,0.00038904,120]
[340021472,1728334271544,-500.0,0.00038904,120]
[340021473,1728334271554,-500.0,0.00038904,120]
[340021474,1728334271563,-800.54,0.00038904,120]
[340021475,1728334271573,-500.0,0.00038904,120]
[340021476,1728334271583,-500.0,0.00038904,120]
[340021477,1728334271595,-709.12,0.00038904,120]
[340021478,1728334271605,-500.0,0.00038904,120]
[340021479,1728334271615,-500.0,0.00038904,120]
[340021480,1728334271624,-711.22,0.00038904,120]
[340021481,1728334271634,-394.05913191,0.00038904,120]
[340021482,1728334271645,-501.16958534,0.00038904,120]
[340021483,1728334271655,-500.0,0.00038904,120]
[340021484,1728334271664,-500.0,0.00038904,120]
[340021485,1728334271673,-550.77,0.00038904,120]
[340021486,1728334271682,-500.0,0.00038904,120]
[340021487,1728334271692,-500.0,0.00038904,120]
[340021488,1728334271702,-500.0,0.00038904,120]
[340021489,1728334271711,-500.0,0.00038904,120]
[340021490,1728334271720,-500.0,0.00038904,120]
[340021491,1728334271730,-744.73,0.00038904,120]
[340021492,1728334271739,-500.0,0.00038904,120]
[340021493,1728334271749,-500.0,0.00038904,120]
[340021494,1728334271759,-750.18,0.00038904,120]
[340021495,1728334271771,-500.0,0.00038904,120]
[340021496,1728334271782,-500.0,0.00038904,120]
[340021497,1728334271793,-500.0,0.00038904,120]
[340021498,1728334271804,-500.0,0.00038904,120]
[340021499,1728334271816,-500.0,0.00038904,120]
[340021500,1728334271829,-500.0,0.00038904,120]
[340021501,1728334271840,-500.0,0.00038904,120]
[340021502,1728334271851,-607.18,0.00038904,120]
[340021503,1728334271861,-1202.82,0.00038904,120]
[340021504,1728334271871,-500.0,0.00038904,120]
[340021505,1728334271881,-500.0,0.00038904,120]
[340021506,1728334271890,-500.0,0.00038904,120]
[340021507,1728334271900,-500.0,0.00038904,120]
[340021508,1728334271909,-500.0,0.00038904,120]
[340021509,1728334271919,-500.0,0.00038904,120]
[340021510,1728334271929,-1170.58,0.00038904,120]
[340021511,1728334271942,-500.0,0.00038904,120]
[340021512,1728334271951,-500.0,0.00038904,120]
[340021513,1728334271961,-500.0,0.00038904,120]
[340021514,1728334271971,-637.28,0.00038904,120]
[340021515,1728334271980,-500.0,0.00038904,120]
[340021516,1728334271990,-500.0,0.00038904,120]
[340021517,1728334271999,-500.0,0.00038904,120]
[340021518,1728334272009,-500.0,0.00038904,120]
[340021519,1728334272021,-500.0,0.00038904,120]
[340021520,1728334272032,-500.0,0.00038904,120]
[340021521,1728334272044,-1008.72,0.00038904,120]
[340021522,1728334272054,-500.0,0.00038904,120]
[340021523,1728334272063,-500.35690915,0.00038904,120]
[340021524,1728334272073,-500.0,0.00038904,120]
[340021525,1728334272085,-500.0,0.00038904,120]
[340021526,1728334272095,-500.0,0.00038904,120]
[340021527,1728334272106,-576.24,0.00038904,120]
[340021528,1728334272118,-500.0,0.00038904,120]
[340021529,1728334272129,-787.72,0.00038904,120]
[340021530,1728334272139,-500.0,0.00038904,7]
[340021531,1728334272151,-501.12704883,0.00038904,120]
[340021532,1728334272162,-500.0,0.00038904,120]
[340021533,1728334272173,-687.3,0.00038904,120]
[340021534,1728334272187,-500.0,0.00038904,120]
[340021535,1728334272197,-500.0,0.00038904,120]
[340021536,1728334272209,-500.0,0.00038904,120]
[340021537,1728334272219,-501.84102421,0.00038904,120]
[340021538,1728334272228,-500.0,0.00038904,120]
[340021539,1728334272241,-917.09,0.00038904,120]
[340021540,1728334272251,-500.0,0.00038904,120]
[340021541,1728334272263,-500.0,0.00038904,120]
[340021542,1728334272274,-500.0,0.00038904,120]
[340021543,1728334272285,-500.0,0.00038904,120]
[340021544,1728334272295,-500.0,0.00038904,120]
[340021545,1728334272306,-500.0,0.00038904,120]
[340021546,1728334272317,-500.0,0.00038904,120]
[340021547,1728334272328,-500.0,0.00038904,120]
[340021548,1728334272338,-1008.32,0.00038904,120]
[340021549,1728334272348,-500.0,0.00038904,120]
[340021550,1728334272359,-500.0,0.00038904,120]
[340021551,1728334272369,-1051.57,0.00038904,120]
[340021552,1728334272379,-500.0,0.00038904,120]
[340021553,1728334272389,-500.0,0.00038904,120]
[340021554,1728334272400,-500.0,0.00038904,120]
[340021555,1728334272410,-500.0,0.00038904,120]
[340021556,1728334272420,-500.0,0.00038904,120]
[340021557,1728334272430,-677.92,0.00038904,120]
[340021558,1728334272441,-500.0,0.00038904,2]
[340021559,1728334272452,-500.0,0.00038904,120]
[340021560,1728334272463,-529.97,0.00038904,120]
[340021561,1728334272476,-500.0,0.00038904,120]
[340021562,1728334272487,-500.0,0.00038904,10]
[340021563,1728334272496,-1141.57,0.00038904,120]
[340021564,1728334272507,-445.29261112,0.00038904,120]
[340021565,1728334272518,-954.06,0.00038904,120]
[340021566,1728334272528,-500.0,0.00038904,120]
[340021567,1728334272537,-500.0,0.00038904,120]
[340021568,1728334272547,-865.56,0.00038904,120]
[340021569,1728334272557,-818.05,0.00038904,120]
[340021570,1728334272566,-500.0,0.00038904,120]
[340021571,1728334272576,-500.0,0.00038904,120]
[340021572,1728334272587,-647.55,0.00038904,120]
[340021573,1728334272598,-500.0,0.00038904,120]
[340021574,1728334272609,-500.0,0.00038904,120]
[340021575,1728334272620,-504.35,0.00038904,120]
[340021576,1728334272630,-500.0,0.00038904,120]
[340021577,1728334272639,-500.0,0.00038904,120]
[340021578,1728334272650,-851.04,0.00038904,120]
[340021579,1728334272661,-500.0,0.00038904,120]
[340021580,1728334272670,-523.84,0.00038904,120]
[340021581,1728334272679,-757.96,0.00038904,30]
[340021582,1728334272689,-500.0,0.00038904,120]
[340021583,1728334272699,-500.0,0.00038904,120]
[340021584,1728334272709,-501.93152025,0.00038904,120]
[340021585,1728334272719,-563.6,0.00038904,120]
[340021586,1728334272732,-555.29,0.00038904,120]
[340021587,1728334272745,-500.0,0.00038904,120]
[340021588,1728334272758,-500.0,0.00038904,120]
[340021589,1728334272770,-500.0,0.00038904,120]
[340021590,1728334272781,-500.0,0.00038904,120]
[340021591,1728334272792,-500.0,0.00038904,120]
[340021592,1728334272803,-500.0,0.00038904,120]
[340021593,1728334272814,-500.0,0.00038904,120]
[340021594,1728334272823,-500.0,0.00038904,120]
[340021595,1728334272835,-743.56,0.00038904,120]
[340021596,1728334272846,-754.92,0.00038904,120]
[340021597,1728334272856,-1365.58,0.00038904,120]
[340021598,1728334272866,-500.0,0.00038904,120]
[340021599,1728334272877,-500.0,0.00038904,120]
[340021600,1728334272886,-500.0,0.00038904,120]
[340021601,1728334272897,-500.0,0.00038904,120]
[340021602,1728334272907,-623.42,0.00038904,120]
[340021603,1728334272917,-500.0,0.00038904,120]
[340021604,1728334272927,-861.29,0.00038904,120]
[340021605,1728334272937,-500.0,0.00038904,2]
[340021606,1728334272947,-500.0,0.00038904,120]
[340021607,1728334272956,-500.67713286,0.00038904,120]
[340021608,1728334272966,-500.0,0.00038904,120]
[340021609,1728334272976,-573.92,0.00038904,120]
[340021610,1728334272986,-555.73,0.00038904,120]
[340021611,1728334272996,-500.0,0.00038904,120]
[340021612,1728334273007,-917.57,0.00038904,120]
[340021613,1728334273017,-500.0,0.00038904,120]
[340021614,1728334273027,-500.0,0.00038904,120]
[340021615,1728334273036,-500.0,0.00038904,120]
[340021616,1728334273046,-500.0,0.00038904,120]
[340021617,1728334273056,-500.0,0.00038904,120]
[340021618,1728334273066,-500.0,0.00038904,120]
[340021619,1728334273076,-544.85,0.00038904,120]
[340021620,1728334273087,-500.0,0.00038904,120]
[340021621,1728334273098,-571.4,0.00038904,60]
[340021622,1728334273111,-500.0,0.00038904,120]
[340021623,1728334273121,-500.0,0.00038904,120]
[340021624,1728334273132,-719.55,0.00038904,120]
[340021625,1728334273144,-500.0,0.00038904,120]
[340021626,1728334273154,-500.0,0.00038904,120]
[340021627,1728334273165,-640.61,0.00038904,120]
[340021628,1728334273175,-500.0,0.00038904,120]
[340021629,1728334273185,-500.0,0.00038904,120]
[340021630,1728334273199,-500.0,0.00038904,120]
[340021631,1728334273209,-918.63,0.00038904,120]
[340021632,1728334273219,-500.0,0.00038904,120]
[340021633,1728334273230,-812.73,0.00038904,120]
[340021634,1728334273241,-500.0,0.00038904,120]
[340021635,1728334273250,-500.41073734,0.00038904,120]
[340021636,1728334273260,-500.0,0.00038904,120]
[340021637,1728334273270,-504.98863517,0.00038904,120]
[340021638,1728334273279,-500.0,0.00038904,120]
[340021639,1728334273288,-500.0,0.00038904,120]
[340021640,1728334273298,-500.0,0.00038904,120]
[340021641,1728334273307,-502.3,0.00038904,120]
[340021642,1728334273317,-500.0,0.00038904,120]
[340021643,1728334273326,-500.0,0.00038904,120]
[340021644,1728334273335,-708.61,0.00038904,120]
[340021645,1728334273344,-500.0,0.00038904,120]
[340021646,1728334273353,-500.0,0.00038904,120]
[340021647,1728334273362,-537.44,0.00038904,120]
[340021648,1728334273372,-500.0,0.00038904,120]
[340021649,1728334273381,-500.0,0.00038904,120]
[340021650,1728334273390,-500.0,0.00038904,120]
[340021651,1728334273400,-610.21,0.00038904,120]
[340021652,1728334273410,-554.6,0.00038904,120]
[340021653,1728334273421,-500.0,0.00038904,120]
[340021654,1728334273430,-500.0,0.00038904,120]
[340021655,1728334273441,-221.99195183,0.00038904,120]
[340021656,1728334273450,-500.0,0.00038904,120]
[340021657,1728334273461,-500.0,0.00038904,120]
[340021658,1728334273471,-500.0,0.00038904,120]
[340021659,1728334273482,-500.0,0.00038904,120]
[340021660,1728334273494,-500.0,0.00038904,120]
[340021661,1728334273505,-501.71778605,0.00038904,120]
[340021662,1728334273515,-500.0,0.00038904,120]
[340021663,1728334273526,-500.0,0.00038904,120]
[340021664,1728334273538,-500.0,0.00038904,120]
[340021665,1728334273547,-500.0,0.00038904,120]
[340021666,1728334273557,-500.0,0.00038904,120]
[340021667,1728334273569,-396.54606879,0.00038904,120]
[340021668,1728334273580,-500.0,0.00038904,120]
[340021669,1728334273590,-500.42286481,0.00038904,120]
[340021670,1728334273600,-501.00138182,0.00038904,120]
[340021671,1728334273611,-500.0,0.00038904,120]
[340021672,1728334273621,-500.0,0.00038904,120]
[340021673,1728334273633,-502.8383962,0.00038904,120]
[340021674,1728334273644,-500.0,0.00038904,120]
[340021675,1728334273655,-500.0,0.00038904,120]
[340021676,1728334273667,-760.72,0.00038904,120]
[340021677,1728334273677,-505.93,0.00038904,120]
[340021678,1728334273687,-500.0,0.00038904,120]
[340021679,1728334273697,-500.0,0.00038904,120]
[340021680,1728334273708,-500.0,0.00038904,120]
[340021681,1728334273719,-579.67,0.00038904,120]
[340021682,1728334273729,-500.0,0.00038904,120]
[340021683,1728334273740,-335.41468914,0.00038904,120]
[340021684,1728334273750,-509.90535465,0.00038904,120]
[340021685,1728334273762,-500.0,0.00038904,120]
[340021686,1728334273773,-500.0,0.00038904,120]
[340021687,1728334273783,-500.0,0.00038904,120]
[340021688,1728334273793,-500.0,0.00038904,120]
[340021689,1728334273802,-500.0,0.00038904,120]
[340021690,1728334273811,-500.0,0.00038904,120]
[340021691,1728334273821,-699.58,0.00038904,120]
[340021692,1728334273830,-909.57,0.00038904,120]
[340021693,1728334273840,-778.22,0.00038904,120]
[340021694,1728334273849,-500.0,0.00038904,120]
[340021695,1728334273858,-500.0,0.00038904,120]
[340021696,1728334273867,-1176.62,0.00038904,120]
[340021697,1728334273877,-500.0,0.00038904,120]
[340021698,1728334273886,-538.25,0.00038904,120]
[340021699,1728334273896,-500.0,0.00038904,120]
[340021700,1728334273905,-500.0,0.00038904,120]
[340021701,1728334273915,-628.45,0.00038904,120]
[340021702,1728334273924,-500.0,0.00038904,120]
[340021703,1728334273933,-500.0,0.00038904,120]
[340021704,1728334273943,-500.0,0.00038904,120]
[340021705,1728334273953,-500.0,0.00038904,30]
[340021706,1728334273962,-500.0,0.00038904,120]
[340021707,1728334273972,-799.02,0.00038904,120]
[340021708,1728334273982,-500.0,0.00038904,120]
[340021709,1728334273992,-500.0,0.00038904,120]
[340021710,1728334274003,-500.0,0.00038904,120]
[340021711,1728334274013,-500.0,0.00038904,120]
[340021712,1728334274022,-1344.11,0.00038904,21]
[340021713,1728334274032,-500.0,0.00038904,120]
[340021714,1728334274041,-500.0,0.00038904,120]
[340021715,1728334274051,-500.0,0.00038904,120]
[340021716,1728334274061,-1176.49,0.00038904,120]
[340021717,1728334274070,-500.0,0.00038904,120]
[340021718,1728334274080,-538.89,0.00038904,120]
[340021719,1728334274090,-500.0,0.00038904,120]
[340021720,1728334274100,-500.0,0.00038904,120]
[340021721,1728334274112,-500.0,0.00038904,120]
[340021722,1728334274122,-500.0,0.00038904,120]
[340021723,1728334274131,-500.0,0.00038904,120]
[340021724,1728334274267,-2556.51,0.00038904,120]
[340021725,1728334274278,-500.0,0.00038904,120]
[340021726,1728334274287,-500.0,0.00038904,120]
[340021727,1728334274297,-500.0,0.00038904,120]
[340021728,1728334274306,-500.0,0.00038904,120]
[340021729,1728334274315,-500.0,0.00038904,120]
[340021730,1728334274325,-500.0,0.00038904,120]
[340021731,1728334274335,-686.35,0.00038904,120]
[340021732,1728334274346,-500.0,0.00038904,120]
[340021733,1728334274355,-1127.5,0.00038904,120]
[340021734,1728334274366,-336.73,0.00038904,7]
[340021735,1728334274376,-557.71,0.00038904,120]
[340021736,1728334274387,-618.33,0.00038904,120]
[340021737,1728334274398,-500.0,0.00038904,120]
[340021738,1728334274408,-554.61,0.00038904,120]
[340021739,1728334274417,-500.0,0.00038904,120]
[340021740,1728334274426,-500.86068437,0.00038904,120]
[340021741,1728334274436,-724.85,0.00038904,120]
[340021742,1728334274447,-500.0,0.00038904,120]
[340021743,1728334274456,-320.23641295,0.00038904,120]
[340021744,1728334274466,-416.61712857,0.00038904,120]
[340021745,1728334274475,-500.0,0.00038904,120]
[340021746,1728334274484,-500.0,0.00038904,120]
[340021747,1728334274493,-500.0,0.00038904,120]
[340021748,1728334274502,-500.0,0.00038904,120]
[340021749,1728334274511,-500.0,0.00038904,120]
[340021750,1728334274521,-500.0,0.00038904,120]
[340021751,1728334274530,-500.0,0.00038904,120]
[340021752,1728334274539,-501.86010177,0.00038904,120]
[340021753,1728334274549,-500.0,0.00038904,120]
[340021754,1728334274561,-500.0,0.00038904,120]
[340021755,1728334274571,-500.0,0.00038904,120]
[340021756,1728334274582,-500.0,0.00038904,120]
[340021757,1728334274593,-500.0,0.00038904,120]
[340021758,1728334274605,-500.0,0.00038904,120]
[340021759,1728334274617,-500.0,0.00038904,120]
[340021760,1728334274628,-500.0,0.00038904,90]
[340021761,1728334274638,-1000.0,0.00038904,120]
[340021762,1728334274649,-616.06963103,0.00038904,120]
[340021763,1728334274659,-575.14,0.00038904,120]
[340021764,1728334274671,-500.0,0.00038904,120]
[340021765,1728334274683,-500.0,0.00038904,120]
[340021766,1728334274693,-500.0,0.00038904,120]
[340021767,1728334274704,-500.0,0.00038904,120]
[340021768,1728334274716,-500.0,0.00038904,120]
[340021769,1728334274726,-500.0,0.00038904,120]
[340021770,1728334274736,-500.0,0.00038904,120]
[340021771,1728334274746,-500.0,0.00038904,120]
[340021772,1728334274758,-501.94,0.00038904,120]
[340021773,1728334274768,-500.0,0.00038904,120]
[340021774,1728334274777,-557.73,0.00038904,120]
[340021775,1728334274786,-500.0,0.00038904,120]
[340021776,1728334274796,-500.0,0.00038904,120]
[340021777,1728334274805,-819.33,0.00038904,120]
[340021778,1728334274814,-500.0,0.00038904,120]
[340021779,1728334274824,-521.05,0.00038904,120]
[340021780,1728334274834,-500.0,0.00038904,120]
[340021781,1728334274843,-500.0,0.00038904,120]
[340021782,1728334274853,-500.0,0.00038904,120]
[340021783,1728334274862,-500.0,0.00038904,120]
[340021784,1728334274871,-248.47501029,0.00038904,120]
[340021785,1728334274881,-1265.51,0.00038904,120]
[340021786,1728334274891,-500.0,0.00038904,120]
[340021787,1728334274900,-500.0,0.00038904,120]
[340021788,1728334274909,-518.1,0.00038904,120]
[340021789,1728334274919,-583.01,0.00038904,120]
[340021790,1728334274928,-500.50449915,0.00038904,120]
[340021791,1728334274938,-500.0,0.00038904,120]
[340021792,1728334274947,-500.0,0.00038904,120]
[340021793,1728334274956,-500.0,0.00038904,120]
[340021794,1728334274965,-500.0,0.00038904,120]
[340021795,1728334274975,-500.0,0.00038904,120]
[340021796,1728334274984,-500.0,0.00038904,120]
[340021797,1728334274993,-500.0,0.00038904,120]
[340021798,1728334275003,-500.0,0.00038904,120]
[340021799,1728334275012,-500.0,0.00038904,120]
[340021800,1728334275021,-1208.8,0.00038904,120]
[340021801,1728334275030,-500.0,0.00038904,120]
[340021802,1728334275040,-500.0,0.00038904,120]
[340021803,1728334275049,-501.88028438,0.00038904,120]
[340021804,1728334275059,-500.0,0.00038904,120]
[340021805,1728334275069,-500.0,0.00038904,120]
[340021806,1728334275078,-500.0,0.00038904,120]
[340021807,1728334275088,-501.2166362,0.00038904,120]
[340021808,1728334275097,-500.0,0.00038904,120]
[340021809,1728334275110,-500.0,0.00038904,120]
[340021810,1728334275120,-503.81894,0.00038904,120]
[340021811,1728334275131,-500.0,0.00038904,120]
[340021812,1728334275142,-500.0,0.00038904,120]
[340021813,1728334275153,-500.0,0.00038904,120]
[340021814,1728334275163,-506.40966824,0.00038904,120]
[340021815,1728334275173,-618.94,0.00038904,120]
[340021816,1728334275183,-500.0,0.00038904,120]
[340021817,1728334275195,-500.0,0.00038904,120]
[340021818,1728334275204,-500.0,0.00038904,120]
[340021819,1728334275213,-500.0,0.00038904,120]
[340021820,1728334275221,-500.0,0.00038904,120]
[340021821,1728334275230,-500.0,0.00038904,120]
[340021822,1728334275239,-500.0,0.00038904,120]
[340021823,1728334275248,-500.0,0.00038904,120]
[340021824,1728334275257,-500.0,0.00038904,120]
[340021825,1728334275266,-500.0,0.00038904,120]
[340021826,1728334275275,-500.0,0.00038904,120]
[340021827,1728334275284,-236.23161588,0.00038904,120]
[340021828,1728334275293,-500.0,0.00038904,120]
[340021829,1728334275302,-718.42,0.00038904,120]
[340021830,1728334275312,-500.0,0.00038904,120]
[340021831,1728334275321,-500.0,0.00038904,120]
[340021832,1728334275330,-500.0,0.00038904,120]
[340021833,1728334275340,-705.43,0.00038904,120]
[340021834,1728334275349,-500.0,0.00038904,120]
[340021835,1728334275359,-500.0,0.00038904,120]
[340021836,1728334275368,-500.0,0.00038904,120]
[340021837,1728334275377,-500.0,0.00038904,120]
[340021838,1728334275386,-512.16,0.00038904,7]
[340021839,1728334275395,-1000.59,0.00038904,120]
[340021840,1728334275404,-500.0,0.00038904,120]
[340021841,1728334275414,-500.0,0.00038904,120]
[340021842,1728334275423,-2499.96,0.00038904,120]
[340021843,1728334275432,-500.0,0.00038904,120]
[340021844,1728334275441,-375.41736424,0.00038904,120]
[340021845,1728334275450,-500.0,0.00038904,120]
[340021846,1728334275459,-500.0,0.00038904,120]
[340021847,1728334275468,-550.18,0.00038904,120]
[340021848,1728334275477,-500.96462923,0.00038904,120]
[340021849,1728334275486,-500.0,0.00038904,120]
[340021850,1728334275495,-500.0,0.00038904,120]
[340021851,1728334275504,-512.13156363,0.00038904,120]
[340021852,1728334275513,-500.0,0.00038904,120]
[340021853,1728334275522,-500.0,0.00038904,120]
[340021854,1728334275531,-615.51,0.00038904,120]
[340021855,1728334275540,-500.0,0.00038904,120]
[340021856,1728334275549,-500.0,0.00038904,120]
[340021857,1728334275559,-502.35912249,0.00038904,120]
[340021858,1728334275568,-598.68845859,0.00038904,120]
[340021859,1728334275578,-508.75423578,0.00038904,120]
[340021860,1728334275588,-500.0,0.00038904,120]
[340021861,1728334275600,-824.07,0.00038904,120]
[340021862,1728334275610,-1097.32,0.00038904,120]
[340021863,1728334275622,-500.0,0.00038904,120]
[340021864,1728334275632,-500.0,0.00038904,120]
[340021865,1728334275645,-500.0,0.00038904,120]
[340021866,1728334275656,-500.0,0.00038904,120]
[340021867,1728334275666,-500.0,0.00038904,120]
[340021868,1728334275675,-500.0,0.00038904,120]
[340021869,1728334275685,-516.16,0.00038904,120]
[340021870,1728334275695,-500.0,0.00038904,120]
[340021871,1728334275704,-500.0,0.00038904,120]
[340021872,1728334275713,-500.0,0.00038904,120]
[340021873,1728334275722,-500.0,0.00038904,120]
[340021874,1728334275732,-500.0,0.00038904,120]
[340021875,1728334275741,-648.17982719,0.00038904,120]
[340021876,1728334275750,-500.0,0.00038904,120]
[340021877,1728334275760,-500.0,0.00038904,120]
[340021878,1728334275771,-514.48,0.00038904,120]
[340021879,1728334275782,-500.0,0.00038904,120]
[340021880,1728334275792,-500.0,0.00038904,120]
[340021881,1728334275804,-500.0,0.00038904,120]
[340021882,1728334275815,-584.54,0.00038904,120]
[340021883,1728334275825,-500.0,0.00038904,120]
[340021884,1728334275835,-500.0,0.00038904,120]
[340021885,1728334275845,-500.0,0.00038904,120]
[340021886,1728334275853,-502.32,0.00038904,120]
[340021887,1728334275863,-500.0,0.00038904,120]
[340021888,1728334275872,-500.0,0.00038904,120]
[340021889,1728334275881,-500.0,0.00038904,120]
[340021890,1728334275890,-500.0,0.00038904,120]
[340021891,1728334275899,-500.0,0.00038904,120]
[340021892,1728334275908,-500.0,0.00038904,120]
[340021893,1728334275918,-200.0,0.00038904,120]
[340021894,1728334275927,-500.0,0.00038904,120]
[340021895,1728334275936,-659.67,0.00038904,30]
[340021896,1728334275946,-500.0,0.00038904,120]
[340021897,1728334275955,-843.64,0.00038904,120]
[340021898,1728334275964,-500.0,0.00038904,120]
[340021899,1728334275973,-826.06,0.00038904,120]
[340021900,1728334275982,-500.0,0.00038904,120]
[340021901,1728334275992,-500.0,0.00038904,120]
[340021902,1728334276001,-844.53,0.00038904,120]
[340021903,1728334276010,-500.0,0.00038904,120]
[340021904,1728334276019,-500.0,0.00038904,120]
[340021905,1728334276028,-500.0,0.00038904,120]
[340021906,1728334276038,-500.0,0.00038904,120]
[340021907,1728334276047,-500.0,0.00038904,120]
[340021908,1728334276056,-500.0,0.00038904,120]
[340021909,1728334276065,-500.0,0.00038904,120]
[340021910,1728334276076,-500.0,0.00038904,120]
[340021911,1728334276086,-500.0,0.00038904,120]
[340021912,1728334276095,-500.0,0.00038904,120]
[340021913,1728334276107,-500.0,0.00038904,120]
[340021914,1728334276117,-500.0,0.00038904,120]
[340021915,1728334276127,-500.0,0.00038904,120]
[340021916,1728334276138,-500.0,0.00038904,120]
[340021917,1728334276151,-352.92001501,0.00038904,120]
[340021918,1728334276163,-863.29,0.00038904,120]
[340021919,1728334276172,-714.69,0.00038904,120]
[340021920,1728334276184,-500.0,0.00038904,120]
[340021921,1728334276194,-500.0,0.00038904,120]
[340021922,1728334276203,-500.0,0.00038904,120]
[340021923,1728334276213,-500.0,0.00038904,120]
[340021924,1728334276223,-500.0,0.00038904,120]
[340021925,1728334276232,-500.0,0.00038904,120]
[340021926,1728334276241,-500.0,0.00038904,120]
[340021927,1728334276250,-537.33,0.00038904,120]
[340021928,1728334276260,-600.75557108,0.00038904,120]